bitfinex/quotes_SOLUSD_20240605
["timestamp","ask_amount","ask_price","bid_price","bid_amount"]
[1717570021858,9.2661,174.02,174.01,0.4]
[1717570022702,29.2661,174.02,174.01,0.4]
[1717570023909,33.5184,174.02,174.01,0.4]
[1717570026331,33.6884,174.02,174.01,0.4]
[1717570029445,33.5184,174.02,174.01,0.4]
[1717570030936,29.2661,174.02,174.01,0.4]
[1717570031441,20.0,174.02,174.01,0.4]
[1717570031621,2.1261,174.03,174.01,0.4]
[1717570032145,29.2661,174.03,174.01,0.4]
[1717570032321,2.1261,174.02,174.01,0.4]
[1717570032732,9.2661,174.02,174.01,0.4]
[1717570033755,2.1261,174.02,174.01,0.4]
[1717570033949,9.2661,174.02,174.01,0.4]
[1717570037540,2.1261,174.02,174.01,0.4]
[1717570037742,9.2661,174.02,174.01,0.4]
[1717570047279,39.8969,174.02,174.01,0.4]
[1717570047565,48.4016,174.02,174.01,0.4]
[1717570050476,27.14,174.02,173.93,6.2691]
[1717570050784,7.14,173.94,173.91,6.5669]
[1717570050956,7.14,173.94,173.91,8.6943]
[1717570051365,7.14,173.94,173.92,2.1274]
[1717570051569,7.14,173.94,173.91,8.6943]
[1717570052262,7.14,173.94,173.91,6.5669]
[1717570052666,7.14,173.94,173.91,8.6944]
[1717570054159,7.14,173.94,173.91,6.5669]
[1717570054362,7.14,173.93,173.91,6.5669]
[1717570055360,2.127,173.95,173.91,6.5669]
[1717570055563,7.14,173.93,173.91,6.5669]
[1717570058366,7.14,173.93,173.91,0.4]
[1717570059692,7.14,173.93,173.91,2.5275]
[1717570059890,2.1269,173.96,173.91,2.5275]
[1717570060063,7.14,173.93,173.91,2.5275]
[1717570062694,7.14,173.93,173.91,0.4]
[1717570064190,7.14,173.93,173.91,2.5275]
[1717570067104,7.14,173.93,173.91,0.4]
[1717570067521,7.14,173.93,173.91,2.5275]
[1717570068229,7.14,173.95,173.92,2.1274]
[1717570068423,7.14,173.95,173.91,2.5274]
[1717570068622,7.14,173.94,173.91,2.5274]
[1717570071105,2.1269,173.96,173.91,2.5274]
[1717570071311,7.14,173.94,173.91,2.5274]
[1717570073233,7.14,173.94,173.89,26.7223]
[1717570073405,7.14,173.94,173.91,2.1274]
[1717570075419,7.14,173.95,173.91,2.1274]
[1717570078626,7.14,173.95,173.91,8.13]
[1717570080232,7.14,173.95,173.92,6.4348]
[1717570080413,2.1269,173.96,173.92,6.4348]
[1717570080610,9.2669,173.96,173.92,6.4348]
[1717570082837,9.2669,173.96,173.92,8.5622]
[1717570083011,9.2669,173.96,173.92,6.4348]
[1717570083623,7.14,173.95,173.92,6.4348]
[1717570084512,9.2669,173.96,173.92,6.4348]
[1717570085133,2.1267,173.98,173.92,6.3473]
[1717570085314,2.1265,173.99,173.95,6.3473]
[1717570085516,2.1265,173.99,173.96,6.3473]
[1717570087215,0.4,174.04,173.98,4.2532]
[1717570087541,0.4,174.04,174.02,8.3336]
[1717570087911,0.4,174.04,174.02,6.2075]
[1717570088111,0.4,174.04,174.03,0.38094797]
[1717570090710,0.4,174.04,174.03,2.50694797]
[1717570090913,0.4,174.04,174.03,0.38094797]
[1717570097757,0.4,174.04,174.03,2.50694797]
[1717570097929,0.4,174.04,174.03,8.53384797]
[1717570098132,0.4,174.04,174.03,24.01854797]
[1717570101828,0.4,174.04,174.03,31.15854797]
[1717570102025,0.4,174.04,174.03,23.6376]
[1717570102231,0.4,174.04,174.03,2.126]
[1717570102441,0.4,174.04,174.0,386.3469]
[1717570102630,0.4,174.04,174.01,2.1262]
[1717570102832,7.54,174.04,174.01,2.1262]
[1717570107432,7.54,174.04,174.02,2.1261]
[1717570109340,7.54,174.04,174.01,2.1262]
[1717570109859,7.54,174.04,174.02,2.1261]
[1717570124774,7.14,174.03,174.02,2.1261]
[1717570128275,0.4,174.04,174.02,2.1261]
[1717570128477,0.4,174.04,174.03,2.126]
[1717570128658,7.54,174.04,174.02,2.1261]
[1717570128858,7.14,174.03,174.02,2.1261]
[1717570129859,7.14,174.03,174.01,2.1262]
[1717570130059,7.14,174.02,174.01,2.1262]
[1717570130578,0.4,174.04,174.01,2.1262]
[1717570130779,7.14,174.02,174.01,2.1262]
[1717570133982,7.14,174.03,174.01,2.1262]
[1717570146667,7.14,174.03,174.0,2.1263]
[1717570146968,7.14,174.03,174.0,2.1264]
[1717570147299,7.14,174.03,174.01,2.1262]
[1717570147484,7.54,174.04,174.01,2.1262]
[1717570148095,0.4,174.04,174.02,2.1261]
[1717570148281,7.54,174.04,174.02,2.1261]
[1717570149104,0.4,174.04,174.02,2.1261]
[1717570149294,7.54,174.04,174.01,2.1262]
[1717570149675,7.14,174.03,174.01,2.1262]
[1717570151105,0.4,174.04,174.02,2.1261]
[1717570151269,7.14,174.03,174.02,2.1261]
[1717570151801,7.14,174.03,174.01,2.1262]
[1717570152497,7.14,174.02,173.99,4.253]
[1717570152683,7.14,174.02,174.0,2.1263]
[1717570153920,7.14,174.02,174.01,2.1263]
[1717570155104,7.14,174.02,174.0,2.1263]
[1717570156092,7.14,174.02,174.01,2.1263]
[1717570157393,7.14,174.02,173.99,2.1265]
[1717570157595,7.14,174.01,173.99,2.1265]
[1717570157850,7.14,174.0,173.95,10.8375]
[1717570157992,7.14,173.99,173.97,2.1267]
[1717570158396,7.14,173.98,173.96,2.1268]
[1717570158593,7.14,173.97,173.93,19.1451]
[1717570158908,7.14,173.97,173.95,2.1269]
[1717570159089,7.14,173.97,173.94,2.1271]
[1717570159286,2.1265,173.99,173.94,2.1271]
[1717570159287,7.14,173.96,173.94,2.1271]
[1717570159509,9.2667,173.98,173.94,2.1271]
[1717570159707,7.14,173.98,173.94,2.1271]
[1717570159913,9.2667,173.98,173.94,2.1271]
[1717570160295,7.14,173.97,173.93,2.1272]
[1717570160698,7.14,173.97,173.94,2.1271]
[1717570160899,7.14,173.98,173.95,2.127]
[1717570161098,0.4,174.04,173.96,14.8883]
[1717570161308,7.14,174.01,173.98,2.1266]
[1717570161694,9.2663,174.01,173.97,2.1267]
[1717570161912,7.14,174.01,173.97,2.1267]
[1717570163097,2.1263,174.01,173.96,2.1268]
[1717570163299,2.1262,174.02,173.97,2.1267]
[1717570163498,2.1262,174.02,173.98,2.1266]
[1717570163731,7.14,174.01,173.98,2.1266]
[1717570163891,4.6519,174.04,173.98,2.1266]
[1717570164114,7.14,174.01,173.98,2.1266]
[1717570164441,7.14,174.01,173.97,2.1267]
[1717570165350,9.2663,174.01,173.97,2.1267]
[1717570165546,7.14,174.01,173.97,2.1267]
[1717570165722,7.14,174.01,173.98,2.1266]
[1717570165922,9.2662,174.02,173.97,2.1267]
[1717570166718,2.1262,174.02,173.97,2.1267]
[1717570167038,2.1262,174.02,173.98,2.1266]
[1717570167350,9.2661,174.03,173.98,2.1266]
[1717570167637,2.1262,174.02,173.97,2.1267]
[1717570168741,2.1262,174.02,173.98,2.1266]
[1717570170223,2.1263,174.01,173.96,7.14]
[1717570170543,2.1263,174.01,173.94,2.1271]
[1717570170544,7.14,173.97,173.94,2.1271]
[1717570170844,2.1269,173.96,173.92,2.1273]
[1717570171162,7.14,173.96,173.92,2.1273]
[1717570171513,7.14,173.96,173.93,2.1272]
[1717570173438,2.1267,173.98,173.93,2.1272]
[1717570173746,7.14,173.96,173.93,2.1272]
[1717570174127,2.1267,173.98,173.93,2.1272]
[1717570174335,7.14,173.97,173.93,2.1272]
[1717570174533,7.14,173.97,173.94,2.1271]
[1717570175127,7.14,173.97,173.93,2.1272]
[1717570177557,2.1262,174.02,173.97,2.1267]
[1717570177742,2.1263,174.01,173.96,2.1268]
[1717570178052,7.14,173.99,173.96,2.1268]
[1717570178655,2.1263,174.01,173.96,2.1268]
[1717570178846,7.14,173.99,173.96,2.1268]
[1717570179866,7.14,173.99,173.97,2.1267]
[1717570180971,7.14,174.0,173.97,2.1267]
[1717570184367,7.14,174.01,173.96,2.1268]
[1717570185272,9.2663,174.01,173.97,2.1268]
[1717570186484,9.2663,174.01,173.96,2.1268]
[1717570188086,9.2663,174.01,173.97,2.1267]
[1717570188455,9.2662,174.02,173.97,2.1267]
[1717570188867,2.1262,174.02,173.97,2.1267]
[1717570189084,9.2662,174.02,173.97,2.1267]
[1717570189581,9.2663,174.01,173.97,2.1267]
[1717570190163,2.1263,174.01,173.98,1.1400784]
[1717570190582,9.2662,174.02,173.98,1.1400784]
[1717570190783,9.2662,174.02,173.98,3.2666784]
[1717570190954,9.2662,174.02,173.98,2.1266]
[1717570191370,2.1263,174.01,173.97,2.1267]
[1717570192478,2.1263,174.01,173.96,2.1268]
[1717570192692,2.1263,174.01,173.97,2.1267]
[1717570194760,2.1262,174.02,173.98,2.1266]
[1717570195668,9.2662,174.02,173.98,2.1266]
[1717570197359,7.14,174.02,173.99,2.1265]
[1717570197756,0.4,174.04,173.98,120.0]
[1717570197958,0.4,174.04,174.01,7.14]
[1717570198284,0.4,174.04,174.02,2.1261]
[1717570199072,0.4,174.04,174.03,2.126]
[1717570199271,0.4,174.04,174.02,2.1261]
[1717570201083,0.4,174.04,174.01,7.14]
[1717570201084,0.4,174.04,174.03,50.965]
[1717570201258,0.4,174.04,174.03,190.965]
[1717570201460,0.4,174.04,174.03,191.305]
[1717570202495,2.5247,174.14,174.1,2.1251]
[1717570202805,2.1248,174.13,174.09,2.1252]
[1717570203163,9.2648,174.13,174.09,2.1252]
[1717570203469,7.14,174.1,174.03,424.135]
[1717570203666,9.2653,174.09,174.05,2.1257]
[1717570204315,2.1254,174.08,174.04,2.1258]
[1717570204607,7.14,174.08,174.03,2.126]
[1717570204768,2.1255,174.07,174.03,2.126]
[1717570204967,9.2655,174.08,174.04,2.1259]
[1717570206069,7.14,174.08,174.05,2.1258]
[1717570206305,7.14,174.08,174.02,4.2523]
[1717570206306,9.2654,174.08,174.04,2.1258]
[1717570206611,2.1254,174.08,174.04,2.1258]
[1717570207067,9.2654,174.09,174.05,2.1258]
[1717570209096,2.1254,174.08,174.05,2.1258]
[1717570209297,2.1254,174.08,174.04,2.1258]
[1717570209817,2.1254,174.08,174.02,4.2523]
[1717570209818,9.2658,174.05,174.01,2.1262]
[1717570209979,7.14,174.04,174.01,2.1262]
[1717570210179,9.2659,174.04,174.01,2.1262]
[1717570210382,2.126,174.03,173.99,382.4264]
[1717570210591,7.14,174.03,174.0,2.1264]
[1717570211171,9.266,174.03,174.0,2.1264]
[1717570211490,9.2662,174.02,173.99,2.1265]
[1717570211676,7.14,174.02,173.99,2.1265]
[1717570212380,2.1262,174.02,173.98,2.1266]
[1717570212589,9.2664,174.0,173.96,2.1268]
[1717570212799,7.14,174.0,173.97,2.1267]
[1717570213020,9.2664,174.0,173.97,2.1267]
[1717570213313,7.14,174.0,173.97,2.1267]
[1717570214883,7.14,173.99,173.97,2.1267]
[1717570215500,9.2664,174.0,173.96,2.1268]
[1717570217682,7.14,173.99,173.96,2.1268]
[1717570218083,7.14,173.99,173.97,2.1267]
[1717570218408,7.14,173.99,173.96,2.1268]
[1717570218586,7.14,173.99,173.97,2.1267]
[1717570218989,7.14,173.99,173.96,2.1268]
[1717570219986,7.14,173.99,173.94,4.2542]
[1717570219987,7.14,173.99,173.97,2.1267]
[1717570220192,2.1261,174.03,173.99,2.1265]
[1717570220505,2.1261,174.03,173.98,2.1266]
[1717570220506,2.1262,174.02,173.98,2.1266]
[1717570220694,2.1263,174.01,173.97,2.1267]
[1717570220895,9.2663,174.01,173.97,2.1267]
[1717570221397,10.6297,174.04,173.97,2.1267]
[1717570221398,9.2664,174.0,173.97,2.1267]
[1717570221600,7.14,174.0,173.97,2.1267]
[1717570222497,9.2664,174.0,173.97,2.1267]
[1717570223010,4.2522,174.03,173.97,2.1267]
[1717570223011,2.1263,174.01,173.97,2.1267]
[1717570223190,7.14,174.0,173.97,2.1267]
[1717570224197,2.1264,174.0,173.96,2.1268]
[1717570224397,9.2664,174.0,173.97,2.1267]
[1717570224607,2.1263,174.01,173.97,2.1267]
[1717570224810,7.14,174.0,173.97,2.1267]
[1717570225913,9.2664,174.0,173.97,2.1267]
[1717570226099,9.2664,174.0,173.96,2.1268]
[1717570228096,9.2665,173.99,173.95,2.1269]
[1717570228613,7.14,173.98,173.95,2.1269]
[1717570229111,10.631,174.02,173.96,23.6223]
[1717570229326,2.1264,174.01,173.97,2.1267]
[1717570229614,9.2664,174.01,173.97,2.1267]
[1717570229792,9.2664,174.01,173.93,8.5091]
[1717570229793,2.1264,174.0,173.96,2.1268]
[1717570229994,9.2664,174.0,173.96,2.1268]
[1717570230214,9.2665,174.0,173.96,2.1268]
[1717570231715,16.701,174.11,174.04,2.1258]
[1717570231919,16.701,174.11,174.01,3.27359308]
[1717570231920,2.1258,174.05,174.01,3.27359308]
[1717570232213,7.14,174.06,174.02,2.1261]
[1717570232417,9.2657,174.06,174.02,2.1261]
[1717570232719,9.2657,174.06,174.01,2.1262]
[1717570233391,2.1257,174.06,174.01,2.1262]
[1717570233691,9.2654,174.08,174.01,11.3925]
[1717570233910,2.1254,174.08,174.04,2.1259]
[1717570234213,8.5001,174.12,174.05,2.1258]
[1717570234214,9.2653,174.09,174.05,2.1258]
[1717570235103,4.2497,174.13,174.06,2.1256]
[1717570235443,7.14,174.11,174.06,2.1256]
[1717570235792,2.1252,174.1,174.06,2.1256]
[1717570237206,2.1251,174.11,174.06,2.1256]
[1717570237908,9.2651,174.11,174.06,2.1256]
[1717570239103,0.4,174.14,174.07,6.5588]
[1717570239307,0.4,174.14,174.09,2.1252]
[1717570239308,9.2648,174.13,174.09,2.1252]
[1717570239720,2.5247,174.14,174.1,2.1252]
[1717570240121,0.4,174.14,174.09,4.2505]
[1717570240321,0.4,174.14,174.09,10.6847]
[1717570240620,0.4,174.14,174.1,3.2726898]
[1717570240821,0.4,174.14,174.11,1.14752388]
[1717570241008,0.4,174.14,174.11,3.27252388]
[1717570241318,0.4,174.14,174.1,1.17173209]
[1717570241522,2.5247,174.14,174.1,8.622]
[1717570241725,2.5247,174.14,174.11,1.17159748]
[1717570243896,0.4,174.14,174.12,6.0555]
[1717570244203,0.4,174.14,174.13,1.17154861]
[1717570246008,0.4,174.14,174.13,171.14864861]
[1717570246525,0.4,174.14,174.13,171.31864861]
[1717570248812,0.4,174.14,174.13,191.31864861]
[1717570249334,0.4,174.24,174.18,120.0]
[1717570249524,0.4,174.24,174.22,2.1236]
[1717570250209,7.54,174.24,174.22,2.1236]
[1717570250414,7.14,174.23,174.19,4.248]
[1717570250731,7.14,174.23,174.21,2.1238]
[1717570251320,0.4,174.24,174.22,2.1237]
[1717570251923,7.14,174.23,174.22,2.1237]
[1717570253829,0.4,174.24,174.22,2.1237]
[1717570254030,7.14,174.23,174.22,2.1237]
[1717570254239,7.14,174.23,174.2,2.1239]
[1717570254441,7.14,174.21,174.2,2.1239]
[1717570255347,7.14,174.21,174.19,2.124]
[1717570255544,7.14,174.2,174.19,2.124]
[1717570255724,7.14,174.2,174.16,386.6734]
[1717570255922,7.14,174.19,174.18,2.1241]
[1717570256613,7.14,174.19,174.18,2.1242]
[1717570257235,2.1237,174.22,174.18,2.1242]
[1717570257615,2.1238,174.21,174.18,2.1242]
[1717570257828,7.14,174.19,174.18,2.1242]
[1717570258731,7.14,174.2,174.19,2.1241]
[1717570259216,7.14,174.2,174.18,2.1241]
[1717570259412,7.14,174.19,174.18,2.1241]
[1717570259947,7.14,174.2,174.19,2.1241]
[1717570260539,7.14,174.2,174.18,2.1241]
[1717570261639,7.14,174.2,174.19,2.1241]
[1717570261839,7.14,174.21,174.19,2.1241]
[1717570262145,0.4,174.24,174.2,2.1239]
[1717570262146,2.5235,174.24,174.2,2.1239]
[1717570262316,7.14,174.22,174.2,2.1239]
[1717570262750,7.14,174.21,174.2,2.1239]
[1717570263046,7.14,174.21,174.19,2.124]
[1717570263247,7.14,174.21,174.2,2.1239]
[1717570265343,7.14,174.21,174.16,6.3734]
[1717570265551,7.14,174.21,174.13,21.6147]
[1717570265765,28.96,174.24,174.19,2.124]
[1717570265920,2.1237,174.22,174.19,2.124]
[1717570266120,2.1237,174.22,174.18,2.1241]
[1717570266317,7.14,174.19,174.15,2.1245]
[1717570266544,7.14,174.16,174.12,4.2498]
[1717570266861,7.14,174.14,174.12,2.1248]
[1717570267153,2.1245,174.16,174.12,2.1248]
[1717570267328,7.14,174.14,174.12,2.1248]
[1717570267540,7.14,174.13,174.11,2.125]
[1717570267847,7.14,174.12,174.11,2.125]
[1717570269459,2.1244,174.17,174.1,4.2503]
[1717570269653,7.14,174.12,174.11,2.125]
[1717570269862,7.14,174.13,174.12,2.1249]
[1717570270227,22.1242,174.18,174.14,2.1246]
[1717570270543,37.4543,174.24,174.11,120.0]
[1717570270761,7.14,174.17,174.16,2.1244]
[1717570271319,7.14,174.17,174.15,2.1245]
[1717570271923,7.14,174.16,174.15,2.1245]
[1717570272123,7.14,174.16,174.14,2.1246]
[1717570272538,7.14,174.16,174.12,4.2497]
[1717570272847,7.14,174.17,174.16,2.1244]
[1717570273227,7.14,174.18,174.17,2.1242]
[1717570273430,2.1239,174.21,174.17,2.1242]
[1717570273627,7.14,174.18,174.17,2.1242]
[1717570274424,22.1237,174.23,174.19,2.124]
[1717570274744,7.14,174.2,174.19,2.124]
[1717570275049,7.14,174.2,174.18,2.1241]
[1717570275247,7.14,174.19,174.18,2.1241]
[1717570275550,9.2641,174.19,174.13,4.2495]
[1717570275725,2.1241,174.19,174.15,2.1245]
[1717570276054,7.14,174.16,174.15,2.1246]
[1717570277036,7.14,174.16,174.14,2.1246]
[1717570277235,7.14,174.16,174.15,2.1246]
[1717570277826,7.14,174.16,174.08,394.8733]
[1717570278132,7.14,174.14,174.13,2.1248]
[1717570278345,2.1243,174.18,174.14,2.1246]
[1717570278645,7.14,174.15,174.14,2.1246]
[1717570279664,7.14,174.16,174.14,2.1246]
[1717570279858,41.7012,174.24,174.14,4.2493]
[1717570280154,7.14,174.18,174.16,2.1244]
[1717570281837,2.124,174.2,174.16,2.1244]
[1717570282055,7.14,174.18,174.17,2.1243]
[1717570282522,7.14,174.18,174.16,2.1244]
[1717570282850,7.14,174.18,174.16,2.1243]
[1717570283149,7.14,174.18,174.17,2.1243]
[1717570283329,7.14,174.18,174.14,6.3741]
[1717570283330,7.14,174.18,174.16,2.1244]
[1717570283725,7.14,174.17,174.16,2.1244]
[1717570283944,7.14,174.17,174.15,2.1245]
[1717570284348,7.14,174.17,174.16,2.1244]
[1717570284951,7.14,174.18,174.17,2.1242]
[1717570285626,7.14,174.19,174.17,2.1242]
[1717570285828,7.14,174.19,174.18,2.1242]
[1717570286034,7.14,174.19,174.15,10.6229]
[1717570286035,7.14,174.19,174.17,2.1242]
[1717570286254,7.14,174.19,174.18,2.1242]
[1717570288645,7.14,174.19,174.17,2.1243]
[1717570288838,7.14,174.18,174.17,2.1243]
[1717570289953,7.14,174.18,174.16,2.1244]
[1717570290334,7.14,174.17,174.16,2.1244]
[1717570290957,2.1241,174.19,174.15,2.1245]
[1717570291130,7.14,174.17,174.16,2.1244]
[1717570291327,2.124,174.2,174.16,2.1244]
[1717570291527,7.14,174.17,174.16,2.1244]
[1717570295964,7.14,174.17,174.14,4.2494]
[1717570296170,7.14,174.15,174.14,2.1246]
[1717570299972,9.2646,174.15,174.11,2.125]
[1717570300344,7.14,174.12,174.11,2.125]
[1717570300550,7.14,174.12,174.09,380.3]
[1717570300745,7.14,174.12,174.1,2.125]
[1717570301364,7.14,174.12,174.11,2.125]
[1717570302861,7.14,174.12,174.1,2.1251]
[1717570303749,7.14,174.12,174.11,2.125]
[1717570304648,7.14,174.13,174.11,2.125]
[1717570305445,4.2487,174.17,174.08,20.9497]
[1717570305446,34.52067388,174.35,174.08,6.0719]
[1717570305661,2.1247,174.14,174.09,2.1252]
[1717570305866,7.14,174.12,174.09,2.1252]
[1717570306254,7.14,174.1,174.08,2.1253]
[1717570306460,7.14,174.09,174.06,2.1256]
[1717570306970,7.14,174.08,174.06,2.1256]
[1717570307577,7.14,174.08,174.04,19.1331]
[1717570307755,7.14,174.08,174.06,2.1256]
[1717570309676,7.14,174.08,174.07,2.1255]
[1717570310061,7.14,174.09,174.07,2.1255]
[1717570310454,2.125,174.12,174.05,10.6289]
[1717570310657,7.14,174.11,174.07,2.1255]
[1717570310862,7.14,174.11,174.05,6.3774]
[1717570311066,7.14,174.11,174.07,2.1255]
[1717570311867,7.14,174.1,174.06,2.1256]
[1717570312457,7.14,174.09,174.06,2.1256]
[1717570315085,2.1251,174.11,174.06,2.1256]
[1717570315380,7.14,174.1,174.07,2.1255]
[1717570315774,7.14,174.11,174.06,4.2513]
[1717570315966,2.125,174.12,174.08,2.1254]
[1717570316167,2.1249,174.13,174.08,2.1254]
[1717570316363,7.14,174.11,174.07,2.1255]
[1717570316572,7.14,174.1,174.07,2.1255]
[1717570316886,7.14,174.11,174.08,2.1254]
[1717570317787,22.1247,174.14,174.09,2.1253]
[1717570318085,22.1247,174.14,174.07,4.251]
[1717570318086,7.14,174.12,174.1,2.1251]
[1717570318975,7.14,174.12,174.09,2.1252]
[1717570320193,4.2487,174.17,174.09,6.1712]
[1717570320359,2.1245,174.16,174.11,2.125]
[1717570320563,7.14,174.15,174.11,2.125]
[1717570320867,2.1245,174.16,174.12,2.1249]
[1717570321081,7.14,174.15,174.12,2.1249]
[1717570321795,7.14,174.15,174.11,2.125]
[1717570322005,9.2646,174.15,174.1,8.5068]
[1717570322596,2.1247,174.14,174.1,8.5068]
[1717570322798,7.14,174.14,174.1,8.5068]
[1717570324281,7.14,174.14,174.13,2.1248]
[1717570324479,2.1243,174.17,174.13,2.1247]
[1717570324675,7.14,174.15,174.13,2.1247]
[1717570324879,7.14,174.15,174.11,4.2501]
[1717570324880,7.14,174.15,174.12,2.1249]
[1717570325577,9.2646,174.15,174.11,8.526]
[1717570325790,7.14,174.13,174.1,2.1251]
[1717570326799,7.14,174.13,174.11,2.125]
[1717570327298,7.14,174.13,174.1,2.1251]
[1717570327500,7.14,174.13,174.11,2.125]
[1717570327889,20.0,174.19,174.1,37.8166]
[1717570328093,7.14,174.16,174.13,2.1247]
[1717570328274,2.1243,174.18,174.13,2.1247]
[1717570328472,7.14,174.16,174.13,2.1247]
[1717570328708,2.1243,174.18,174.13,2.1247]
[1717570329005,20.0,174.19,174.14,2.1246]
[1717570329180,7.14,174.17,174.14,2.1246]
[1717570329382,7.14,174.17,174.13,6.4641]
[1717570329605,2.1241,174.19,174.13,6.4641]
[1717570329806,7.14,174.18,174.14,2.1246]
[1717570330302,2.1241,174.19,174.14,8.5887]
[1717570330513,7.14,174.18,174.14,8.5887]
[1717570330693,7.14,174.18,174.15,2.1246]
[1717570331510,7.14,174.18,174.14,8.5887]
[1717570332085,2.1241,174.19,174.14,8.5887]
[1717570332285,7.14,174.18,174.14,8.5887]
[1717570332586,7.14,174.18,174.15,2.1245]
[1717570333193,2.124,174.2,174.16,2.1244]
[1717570333404,2.124,174.2,174.15,2.1245]
[1717570333616,7.14,174.17,174.15,2.1245]
[1717570333913,2.124,174.2,174.15,2.1245]
[1717570334104,7.14,174.17,174.15,2.1245]
[1717570334506,7.14,174.17,174.14,8.5887]
[1717570334699,7.14,174.17,174.15,2.1245]
[1717570334912,2.1241,174.19,174.14,8.5887]
[1717570335086,7.14,174.17,174.14,8.5887]
[1717570335288,7.14,174.17,174.14,6.4641]
[1717570335490,7.14,174.17,174.14,8.5887]
[1717570336109,7.14,174.17,174.15,2.1245]
[1717570336415,7.14,174.17,174.14,6.4641]
[1717570336596,7.14,174.17,174.14,8.5887]
[1717570336923,2.1241,174.19,174.14,8.5887]
[1717570337217,7.14,174.17,174.14,8.5887]
[1717570338035,2.1241,174.19,174.14,8.5887]
[1717570338190,7.14,174.17,174.14,8.5887]
[1717570338605,7.14,174.17,174.15,2.1245]
[1717570339698,2.1239,174.21,174.16,2.1244]
[1717570339913,7.14,174.18,174.16,2.1244]
[1717570340300,2.124,174.2,174.16,2.1244]
[1717570340517,2.124,174.2,174.15,2.1245]
[1717570340692,7.14,174.18,174.15,8.5956]
[1717570341014,2.124,174.2,174.15,8.5956]
[1717570341188,7.14,174.16,174.14,2.1247]
[1717570341516,7.14,174.15,174.14,2.1247]
[1717570341731,2.124,174.2,174.12,14.5027]
[1717570342029,7.14,174.17,174.16,2.1244]
[1717570342398,7.14,174.17,174.15,2.1245]
[1717570342598,2.124,174.2,174.15,2.1245]
[1717570342802,7.14,174.17,174.15,2.1245]
[1717570343922,2.124,174.2,174.15,2.1245]
[1717570344123,7.14,174.17,174.16,2.1244]
[1717570344506,2.1239,174.21,174.14,20.8891]
[1717570344705,7.14,174.18,174.17,2.1242]
[1717570345026,20.0,174.23,174.17,2.1242]
[1717570345225,7.14,174.18,174.16,2.1244]
[1717570347615,7.14,174.17,174.16,2.1244]
[1717570351439,2.1239,174.21,174.16,2.1244]
[1717570351739,7.14,174.17,174.16,2.1244]
[1717570354840,7.14,174.19,174.17,8.5016]
[1717570355428,7.14,174.19,174.16,2.1244]
[1717570356018,7.14,174.19,174.17,2.1242]
[1717570357726,63.8249,174.24,174.15,10.6595]
[1717570357727,2.1237,174.22,174.18,2.1242]